fUSD/lending_fUSD_20250215
["ID","MTS","AMOUNT","RATE_DAILY","PERIOD"]
[353202658,1739646645729,-421.8,0.00011122,2]
[353202659,1739646645738,-500.0,0.00011122,2]
[353202660,1739646645747,-500.0,0.00011122,2]
[353202661,1739646645756,-500.0,0.00011122,2]
[353202662,1739646645766,-500.0,0.00011122,2]
[353202663,1739646645775,-500.0,0.00011122,2]
[353202664,1739646645786,-546.56,0.00011122,2]
[353202665,1739646645795,-500.0,0.00011122,2]
[353202666,1739646645805,-500.0,0.00011122,2]
[353202667,1739646645814,-500.0,0.00011122,2]
[353202668,1739646645823,-500.0,0.00011122,2]
[353202669,1739646645833,-500.0,0.00011122,2]
[353202670,1739646645842,-500.0,0.00011122,2]
[353202671,1739646645851,-500.0,0.00011122,2]
[353202672,1739646645861,-500.0,0.00011122,2]
[353202673,1739646645871,-500.0,0.00011122,2]
[353202674,1739646645880,-500.0,0.00011122,2]
[353202675,1739646645890,-383.75,0.00011122,2]
[353202676,1739646645899,-500.0,0.00011122,2]
[353202677,1739646645909,-500.0,0.00011122,2]
[353202678,1739646645919,-500.0,0.00011122,2]
[353202679,1739646645929,-500.0,0.00011122,2]
[353202680,1739646645938,-225.85,0.00011122,2]
[353202681,1739646645948,-500.0,0.00011122,2]
[353202682,1739646645957,-500.0,0.00011122,2]
[353202683,1739646645966,-203.91,0.00011122,2]
[353202684,1739646645976,-500.0,0.00011122,2]
[353202685,1739646645985,-404.0,0.00011122,2]
[353202687,1739646645994,-500.0,0.00011122,2]
[353202688,1739646646003,-500.0,0.00011122,2]
[353202689,1739646646013,-500.0,0.00011122,2]
[353202690,1739646646021,-304.94,0.00011122,2]
[353202691,1739646646031,-279.59,0.00011122,2]
[353202692,1739646646040,-500.0,0.00011122,2]
[353202693,1739646646050,-161.92,0.00011122,2]
[353202694,1739646646060,-435.22,0.00011122,2]
[353202695,1739646646070,-500.0,0.00011122,2]
[353202696,1739646646079,-500.0,0.00011122,2]
[353202697,1739646646088,-500.0,0.00011122,2]
[353202698,1739646646097,-500.0,0.00011122,2]
[353202699,1739646646107,-468.98,0.00011122,2]
[353202700,1739646646117,-363.08,0.00011123,2]
[353202701,1739646646126,-333.68,0.00011123,2]
[353202702,1739646646136,-721.72,0.00011123,2]
[353202703,1739646646145,-500.0,0.00011123,2]
[353202704,1739646646155,-461.66,0.00011123,2]
[353202705,1739646646164,-580.63,0.00011123,2]
[353202706,1739646646178,-529.42,0.00011123,2]
[353202707,1739646646187,-534.94,0.00011123,2]
[353202708,1739646646197,-500.0,0.00011123,2]
[353202709,1739646646206,-627.66,0.00011123,2]
[353202710,1739646646216,-500.0,0.00011123,2]
[353202711,1739646646226,-500.0,0.00011123,2]
[353202712,1739646646235,-533.46,0.00011123,2]
[353202713,1739646646244,-500.0,0.00011123,2]
[353202714,1739646646255,-500.0,0.00011123,2]
[353202715,1739646646265,-500.0,0.00011123,2]
[353202716,1739646646274,-599.39889659,0.00011123,2]
[353202717,1739646646283,-500.0,0.00011123,2]
[353202718,1739646646293,-500.0,0.00011123,2]
[353202719,1739646646302,-3759.88666801,0.00011187,2]
[353202720,1739646646312,-500.0,0.00011203,2]
[353202721,1739646646321,-461.97326835,0.00011203,2]
[353202722,1739646646331,-500.0,0.00011203,2]
[353202723,1739646646340,-500.0,0.00011203,2]
[353202724,1739646646349,-500.0,0.00011203,2]
[353202725,1739646646359,-500.0,0.00011203,2]
[353202726,1739646646368,-275.87,0.00011203,2]
[353202727,1739646646378,-500.0,0.00011203,2]
[353202728,1739646646387,-461.6,0.00011203,2]
[353202729,1739646646396,-500.0,0.00011203,2]
[353202730,1739646646406,-500.0,0.00011203,2]
[353202731,1739646646416,-422.34,0.00011203,2]
[353202732,1739646646426,-500.0,0.00011203,2]
[353202733,1739646646435,-639.05,0.00011203,2]
[353202734,1739646646444,-160.22,0.00011204,2]
[353202735,1739646646453,-500.0,0.00011204,2]
[353202736,1739646646463,-559.13,0.00011204,2]
[353202737,1739646646473,-500.0,0.00011204,2]
[353202738,1739646646482,-500.0,0.00011204,2]
[353202739,1739646646491,-358.98,0.00011204,2]
[353202740,1739646646501,-500.0,0.00011204,2]
[353202741,1739646646510,-227.17,0.00011204,2]
[353202743,1739646646520,-500.0,0.00011204,2]
[353202745,1739646646530,-185.14,0.00011204,2]
[353202747,1739646646540,-500.0,0.00011204,2]
[353202748,1739646646550,-500.0,0.00011204,2]
[353202750,1739646646560,-163.29,0.00011204,2]
[353202752,1739646646569,-354.74,0.00011204,2]
[353202753,1739646646578,-355.31,0.00011204,2]
[353202755,1739646646587,-500.0,0.00011204,2]
[353202756,1739646646597,-500.0,0.00011204,2]
[353202757,1739646646606,-500.0,0.00011204,2]
[353202758,1739646646615,-500.0,0.00011204,2]
[353202759,1739646646626,-500.0,0.00011204,2]
[353202760,1739646646635,-500.0,0.00011204,2]
[353202761,1739646646644,-238.54,0.00011204,2]
[353202763,1739646646654,-500.0,0.00011204,2]
[353202764,1739646646663,-500.0,0.00011204,2]
[353202765,1739646646672,-500.0,0.00011204,2]
[353202766,1739646646841,-310.16,0.00011204,2]
[353202767,1739646646852,-500.0,0.00011204,2]
[353202768,1739646646862,-500.0,0.00011204,2]
[353202769,1739646646872,-500.0,0.00011204,2]
[353202770,1739646646881,-500.0,0.00011204,2]
[353202771,1739646646891,-500.0,0.00011204,2]
[353202772,1739646646901,-365.04,0.00011204,2]
[353202773,1739646646911,-500.0,0.00011204,2]
[353202774,1739646646920,-500.0,0.00011204,2]
[353202775,1739646646928,-533.0,0.00011204,2]
[353202776,1739646646938,-500.0,0.00011204,2]
[353202777,1739646646947,-500.0,0.00011204,2]
[353202778,1739646646957,-595.07,0.00011204,2]
[353202779,1739646646967,-500.0,0.00011204,2]
[353202780,1739646646976,-500.0,0.00011204,2]
[353202781,1739646646987,-436.04,0.00011204,2]
[353202782,1739646646997,-500.0,0.00011204,2]
[353202783,1739646647006,-500.0,0.00011204,2]
[353202784,1739646647016,-169.9,0.00011204,2]
[353202785,1739646647027,-500.0,0.00011204,2]
[353202786,1739646647037,-500.0,0.00011204,2]
[353202787,1739646647046,-500.0,0.00011204,2]
[353202788,1739646647056,-500.0,0.00011204,2]
[353202789,1739646647066,-295.25,0.00011204,2]
[353202790,1739646647076,-500.0,0.00011204,2]
[353202791,1739646647086,-500.0,0.00011204,2]
[353202792,1739646647096,-500.0,0.00011204,2]
[353202793,1739646647106,-448.59,0.00011204,2]
[353202795,1739646647116,-295.31,0.00011204,2]
[353202796,1739646647126,-500.0,0.00011204,2]
[353202797,1739646647137,-500.0,0.00011204,2]
[353202798,1739646647147,-500.0,0.00011204,2]
[353202799,1739646647157,-500.0,0.00011204,2]
[353202800,1739646647167,-500.0,0.00011204,2]
[353202801,1739646647181,-312.09,0.00011204,2]
[353202802,1739646647191,-500.0,0.00011204,2]
[353202803,1739646647201,-500.0,0.00011204,2]
[353202804,1739646647210,-500.0,0.00011204,2]
[353202805,1739646647220,-500.0,0.00011204,2]
[353202806,1739646647230,-186.5,0.00011204,2]
[353202807,1739646647240,-721.72,0.00011205,2]
[353202808,1739646647251,-484.08,0.00011205,2]
[353202809,1739646647261,-185.42,0.00011205,2]
[353202810,1739646647271,-500.0,0.00011205,2]
[353202811,1739646647281,-500.0,0.00011205,2]
[353202812,1739646647290,-533.46,0.00011205,2]
[353202813,1739646647300,-555.6064024,0.00011205,2]
[353202814,1739646647310,-500.0,0.00011205,2]
[353202815,1739646647320,-500.0,0.00011205,2]
[353202816,1739646647329,-500.0,0.00011205,2]
[353202817,1739646647339,-500.0,0.00011205,2]
[353202818,1739646647348,-1200.0,0.00011232,2]
[353202819,1739646647358,-382.8728835,0.00011233,2]
[353202820,1739646647367,-262.45,0.00011235,2]
[353202821,1739646647377,-500.0,0.00011286,2]
[353202822,1739646647387,-500.0,0.00011286,2]
[353202823,1739646647397,-500.0,0.00011286,2]
[353202824,1739646647407,-500.0,0.00011286,2]
[353202825,1739646647419,-500.0,0.00011286,2]
[353202826,1739646647429,-500.0,0.00011286,2]
[353202827,1739646647438,-500.0,0.00011286,2]
[353202828,1739646647447,-500.0,0.00011286,2]
[353202829,1739646647458,-500.0,0.00011286,2]
[353202830,1739646647467,-721.72,0.00011287,2]
[353202831,1739646647477,-500.0,0.00011287,2]
[353202832,1739646647486,-500.0,0.00011287,2]
[353202833,1739646647496,-395.8,0.00011287,2]
[353202834,1739646647505,-300.21,0.00011287,2]
[353202835,1739646647514,-500.0,0.00011287,2]
[353202836,1739646647524,-278.99,0.00011287,2]
[353202837,1739646647533,-500.0,0.00011287,2]
[353202838,1739646647543,-500.0,0.00011287,2]
[353202839,1739646647553,-500.0,0.00011287,2]
[353202840,1739646647563,-275.18,0.00011287,2]
[353202841,1739646647573,-499.52,0.00011287,2]
[353202842,1739646647584,-240.32,0.00011287,2]
[353202843,1739646647595,-467.05,0.00011287,2]
[353202844,1739646647605,-352.92,0.00011287,2]
[353202845,1739646647614,-408.75,0.00011287,2]
[353202846,1739646647623,-500.0,0.00011287,2]
[353202847,1739646647632,-500.0,0.00011287,2]
[353202848,1739646647641,-198.71,0.00011287,2]
[353202849,1739646647650,-500.0,0.00011287,2]
[353202850,1739646647659,-500.0,0.00011287,2]
[353202851,1739646647668,-500.0,0.00011287,2]
[353202852,1739646647679,-500.0,0.00011287,2]
[353202853,1739646647689,-500.0,0.00011287,2]
[353202854,1739646647699,-445.82,0.00011287,2]
[353202855,1739646647709,-500.0,0.00011287,2]
[353202856,1739646647721,-500.0,0.00011287,2]
[353202857,1739646647731,-174.15,0.00011287,2]
[353202858,1739646647741,-500.0,0.00011287,2]
[353202859,1739646647751,-500.0,0.00011287,2]
[353202860,1739646647761,-500.0,0.00011287,2]
[353202861,1739646647771,-500.0,0.00011287,2]
[353202862,1739646647781,-500.0,0.00011287,2]
[353202863,1739646647791,-500.0,0.00011287,2]
[353202864,1739646647801,-556.78,0.00011287,2]
[353202865,1739646647811,-327.67,0.00011287,2]
[353202866,1739646647821,-500.0,0.00011287,2]
[353202867,1739646647831,-647.87,0.00011287,2]
[353202868,1739646647841,-500.0,0.00011287,2]
[353202869,1739646647853,-438.45,0.00011287,2]
[353202870,1739646647862,-500.0,0.00011287,2]
[353202871,1739646647872,-533.46,0.00011287,2]
[353202872,1739646647882,-271.03,0.00011287,2]
[353202873,1739646647892,-500.0,0.00011287,2]
[353202874,1739646647902,-500.0,0.00011287,2]
[353202875,1739646647911,-500.0,0.00011287,2]
[353202876,1739646647920,-457.66031656,0.00011287,2]
[353202877,1739646647929,-500.0,0.00011287,2]
[353202878,1739646647938,-500.0,0.00011287,2]
[353202879,1739646647948,-353.23,0.00011287,2]
[353202880,1739646647958,-500.0,0.00011287,2]
[353202881,1739646647968,-337.43,0.00011287,2]
[353202882,1739646647978,-231.29,0.000113,2]
[353202883,1739646647989,-500.0,0.00011368,2]
[353202884,1739646647999,-500.0,0.00011368,2]
[353202885,1739646648009,-500.0,0.00011368,2]
[353202886,1739646648019,-500.0,0.00011368,2]
[353202887,1739646648028,-500.0,0.00011368,2]
[353202888,1739646648038,-500.0,0.00011368,2]
[353202889,1739646648047,-500.0,0.00011368,2]
[353202890,1739646648056,-500.0,0.00011368,2]
[353202891,1739646648066,-317.78,0.00011368,2]
[353202892,1739646648075,-721.72,0.00011369,2]
[353202893,1739646648085,-495.7485,0.00011369,2]
[353202894,1739646648095,-500.0,0.00011369,2]
[353202895,1739646648104,-172.28,0.00011369,2]
[353202896,1739646648113,-436.08,0.00011369,2]
[353202897,1739646648123,-500.0,0.00011369,2]
[353202898,1739646648133,-487.34,0.00011369,2]
[353202899,1739646648142,-500.0,0.00011369,2]
[353202900,1739646648152,-500.0,0.00011369,2]
[353202901,1739646648162,-500.0,0.00011369,2]
[353202902,1739646648172,-500.0,0.00011369,2]
[353202903,1739646648184,-500.0,0.00011369,2]
[353202904,1739646648194,-286.01,0.00011369,2]
[353202905,1739646648203,-171.84,0.00011369,2]
[353202906,1739646648214,-500.0,0.00011369,2]
[353202907,1739646648224,-500.0,0.00011369,2]
[353202908,1739646648235,-500.0,0.00011369,2]
[353202909,1739646648247,-348.28,0.00011369,2]
[353202910,1739646648259,-500.0,0.00011369,2]
[353202911,1739646648270,-500.0,0.00011369,2]
[353202912,1739646648280,-486.17,0.00011369,2]
[353202913,1739646648292,-253.82,0.00011369,2]
[353202914,1739646648303,-500.0,0.00011369,2]
[353202915,1739646648314,-500.0,0.00011369,2]
[353202916,1739646648324,-533.46,0.00011369,2]
[353202917,1739646648334,-507.17,0.00011369,2]
[353202918,1739646648344,-500.0,0.00011369,2]
[353202919,1739646648354,-180.04,0.00011369,2]
[353202920,1739646648364,-500.0,0.00011369,2]
[353202921,1739646648374,-500.0,0.00011369,2]
[353202922,1739646648385,-500.0,0.00011369,2]
[353202923,1739646648395,-800.0,0.00011428,2]
[353202924,1739646648406,-900.0,0.00011428,2]
[353202925,1739646648416,-500.0,0.0001145,2]
[353202926,1739646648426,-500.0,0.0001145,2]
[353202927,1739646648436,-500.0,0.0001145,2]
[353202928,1739646648446,-500.0,0.0001145,2]
[353202929,1739646648456,-500.0,0.0001145,2]
[353202930,1739646648467,-500.0,0.0001145,2]
[353202931,1739646648477,-500.0,0.0001145,2]
[353202932,1739646648487,-269.39,0.0001145,2]
[353202933,1739646648497,-267.77,0.00011451,2]
[353202934,1739646648507,-415.87,0.00011451,2]
[353202935,1739646648518,-500.0,0.00011451,2]
[353202936,1739646648528,-500.0,0.00011451,2]
[353202937,1739646648538,-500.0,0.00011451,2]
[353202938,1739646648548,-301.89,0.00011451,2]
[353202939,1739646648559,-500.0,0.00011451,2]
[353202940,1739646648569,-500.0,0.00011451,2]
[353202941,1739646648580,-500.0,0.00011451,2]
[353202942,1739646648590,-500.0,0.00011451,2]
[353202943,1739646648600,-447.05,0.00011451,2]
[353202944,1739646648610,-601.66,0.00011451,2]
[353202945,1739646648621,-318.42,0.00011451,2]
[353202946,1739646648631,-533.46,0.00011451,2]
[353202947,1739646648641,-500.0,0.00011451,2]
[353202948,1739646648650,-500.0,0.00011451,2]
[353202949,1739646648661,-500.0,0.00011451,2]
[353202950,1739646648670,-500.0,0.00011451,2]
[353202951,1739646648681,-721.72,0.00011452,2]
[353202952,1739646648691,-500.0,0.00011452,2]
[353202953,1739646648701,-2751.0,0.00011507,2]
[353202954,1739646648711,-500.0,0.00011532,2]
[353202955,1739646648721,-500.0,0.00011532,2]
[353202956,1739646648731,-500.0,0.00011532,2]
[353202957,1739646648742,-500.0,0.00011532,2]
[353202958,1739646648752,-500.0,0.00011532,2]
[353202959,1739646648761,-500.0,0.00011532,2]
[353202960,1739646648772,-500.0,0.00011532,2]
[353202961,1739646648781,-500.0,0.00011533,2]
[353202962,1739646648791,-500.0,0.00011533,2]
[353202963,1739646648800,-252.98,0.00011533,2]
[353202964,1739646648810,-300.01,0.00011533,2]
[353202965,1739646648821,-601.34,0.00011533,2]
[353202966,1739646648831,-500.0,0.00011533,2]
[353202967,1739646648842,-500.0,0.00011533,2]
[353202968,1739646648851,-533.46,0.00011533,2]
[353202969,1739646648861,-500.0,0.00011533,2]
[353202970,1739646648871,-372.01939149,0.00011533,2]
[353202971,1739646648881,-289.13,0.00011533,2]
[353202972,1739646648891,-500.0,0.00011533,2]
[353202973,1739646648902,-721.72,0.00011534,2]
[353202974,1739646648913,-500.0,0.00011534,2]
[353202975,1739646648923,-3759.88666793,0.00011579,2]
[353202976,1739646648933,-500.0,0.00011614,2]
[353202977,1739646648943,-500.0,0.00011614,2]
[353202978,1739646648952,-500.0,0.00011614,2]
[353202979,1739646648962,-500.0,0.00011614,2]
[353202980,1739646648972,-500.0,0.00011614,2]
[353202981,1739646648982,-603.47,0.00011614,2]
[353202982,1739646648992,-431.25,0.00011614,2]
[353202983,1739646649002,-190.39,0.00011615,2]
[353202984,1739646649012,-500.0,0.00011615,2]
[353202985,1739646649022,-500.0,0.00011615,2]
[353202986,1739646649031,-500.0,0.00011615,2]
[353202987,1739646649041,-721.72,0.00011616,2]
[353202988,1739646649051,-500.0,0.00011616,2]
[353202989,1739646649061,-533.46,0.00011616,2]
[353202990,1739646649070,-500.0,0.00011616,2]
[353202991,1739646649080,-500.0,0.00011616,2]
[353202992,1739646649090,-150.0,0.00011654,2]
[353202993,1739646649100,-500.0,0.00011696,2]
[353202994,1739646649110,-500.0,0.00011696,2]
[353202995,1739646649120,-500.0,0.00011696,2]
[353202996,1739646649130,-500.0,0.00011696,2]
[353202997,1739646649140,-721.72,0.00011698,2]
[353202998,1739646649151,-500.0,0.00011698,2]
[353202999,1739646649161,-500.0,0.00011698,2]
[353203000,1739646649171,-500.0,0.00011698,2]
[353203001,1739646649185,-500.0,0.00011698,2]
[353203002,1739646649195,-533.46,0.00011698,2]
[353203003,1739646649205,-500.0,0.00011698,2]
[353203004,1739646649216,-500.0,0.00011698,2]
[353203005,1739646649226,-500.0,0.00011779,2]
[353203006,1739646649236,-500.0,0.00011779,2]
[353203007,1739646649246,-500.0,0.00011779,2]
[353203008,1739646649257,-500.0,0.00011779,2]
[353203009,1739646649267,-721.72,0.0001178,2]
[353203010,1739646649277,-500.0,0.0001178,2]
[353203011,1739646649286,-500.0,0.0001178,2]
[353203012,1739646649297,-500.0,0.0001178,2]
[353203013,1739646649307,-500.0,0.0001178,2]
[353203014,1739646649316,-533.46,0.0001178,2]
[353203015,1739646649326,-500.0,0.0001178,2]
[353203016,1739646649336,-500.0,0.0001178,2]
[353203017,1739646649345,-500.0,0.00011861,2]
[353203018,1739646649355,-500.0,0.00011861,2]
[353203019,1739646649365,-500.0,0.00011861,2]
[353203020,1739646649375,-263.91075178,0.00011861,2]
[353203021,1739646649385,-500.0,0.00011862,2]
[353203022,1739646649395,-500.0,0.00011862,2]
[353203023,1739646649405,-500.0,0.00011862,2]
[353203024,1739646649415,-533.46,0.00011862,2]
[353203025,1739646649425,-461.84043987,0.00011862,2]
[353203026,1739646649435,-304.92,0.00011862,2]
[353203027,1739646649445,-721.72,0.00011863,2]
[353203028,1739646649454,-1000.0,0.00011895,2]
[353203029,1739646649463,-156.04846163,0.000119,2]
[353203030,1739646649473,-156.04846152,0.000119,2]
[353203031,1739646649482,-156.04846152,0.000119,2]
[353203032,1739646649491,-156.04846152,0.000119,2]
[353203033,1739646649502,-156.04846152,0.000119,2]
[353203034,1739646649511,-500.0,0.00011943,2]
[353203035,1739646649520,-500.0,0.00011943,2]
[353203036,1739646649530,-500.0,0.00011943,2]
[353203037,1739646649539,-633.22,0.00011944,2]
[353203038,1739646649549,-500.0,0.00011944,2]
[353203039,1739646649558,-472.68,0.00011944,2]
[353203040,1739646649567,-533.46,0.00011944,2]
[353203041,1739646649577,-721.72,0.00011945,2]
[353203042,1739646649587,-159.73955405,0.00011949,2]
[353203043,1739646649597,-3759.88666793,0.00011971,2]
[353203044,1739646649607,-532.20416679,0.00012025,2]
[353203045,1739646649616,-500.0,0.00012025,2]
[353203046,1739646649625,-500.0,0.00012025,2]
[353203047,1739646649634,-500.0,0.00012026,2]
[353203048,1739646649644,-721.72,0.00012027,2]
[353203049,1739646649653,-533.46,0.00012027,2]
[353203050,1739646649664,-2416.82,0.00012046,2]
[353203051,1739646649673,-156.04846152,0.00012059,2]
[353203052,1739646649682,-152.0,0.0001206,3]
[353203053,1739646649692,-150.0,0.00012083,2]
[353203054,1739646649702,-150.0,0.00012094,2]
[353203055,1739646649712,-3916.0,0.00012094,2]
[353203056,1739646649722,-500.0,0.00012107,2]
[353203057,1739646649732,-500.0,0.00012107,2]
[353203058,1739646649743,-721.72,0.00012109,2]
[353203059,1739646649752,-500.0,0.00012109,2]
[353203060,1739646649761,-533.46,0.00012109,2]
[353203061,1739646649771,-500.0,0.0001219,2]
[353203063,1739646649780,-500.0,0.0001219,2]
[353203064,1739646649789,-721.72,0.00012191,2]
[353203065,1739646649798,-500.0,0.00012191,2]
[353203066,1739646649807,-533.46,0.00012191,2]
[353203067,1739646649816,-152.0,0.00012223,4]
[353203068,1739646649826,-496.06,0.00012272,2]
[353203069,1739646649836,-500.0,0.00012272,2]
[353203070,1739646649846,-721.72,0.00012273,2]
[353203071,1739646649858,-500.0,0.00012273,2]
[353203072,1739646649868,-533.46,0.00012273,2]
[353203073,1739646649877,-150.0,0.00012293,2]
[353203074,1739646649886,-156.04846152,0.00012299,2]
[353203075,1739646649896,-500.0,0.00012299,2]
[353203076,1739646649905,-151.0,0.00012329,2]
[353203077,1739646649914,-151.0,0.00012329,2]
[353203078,1739646649923,-151.0,0.00012329,2]
[353203079,1739646649933,-151.0,0.00012329,2]
[353203080,1739646649942,-151.0,0.00012329,2]
[353203081,1739646649951,-151.0,0.00012329,2]
[353203082,1739646649960,-299.710268,0.00012329,2]
[353203083,1739646649970,-211.552633,0.00012329,2]
[353203084,1739646649979,-248.20711,0.00012329,2]
[353203085,1739646649989,-248.20711,0.00012329,2]
[353203086,1739646649998,-151.0,0.00012329,2]
[353203087,1739646650007,-301.086428,0.00012329,2]
[353203088,1739646650016,-301.086428,0.00012329,2]
[353203089,1739646650026,-758.027104,0.00012329,2]
[353203090,1739646650035,-758.027104,0.00012329,2]
[353203091,1739646650044,-151.0,0.0001234,2]
[353203092,1739646650053,-151.0,0.0001234,2]
[353203093,1739646650062,-169.7598,0.0001234,2]
[353203094,1739646650071,-169.7598,0.0001234,2]
[353203095,1739646650081,-151.0,0.0001234,2]
[353203096,1739646650090,-151.0,0.0001234,2]
[353203097,1739646650099,-301.086428,0.0001234,2]
[353203098,1739646650108,-301.086428,0.0001234,2]
[353203099,1739646650118,-500.0,0.00012354,2]
[353203100,1739646650127,-314.61482295,0.00012355,2]
[353203101,1739646650137,-533.46,0.00012355,2]
[353203102,1739646650147,-721.72,0.00012356,2]
[353203103,1739646650156,-3759.88666793,0.00012363,2]
[353203104,1739646650165,-152.0,0.00012387,5]
[353203105,1739646650178,-471.48,0.00012405,2]
[353203106,1739646650188,-150.0,0.00012411,2]
[353203107,1739646650197,-576.26224483,0.00012436,2]
[353203108,1739646650207,-721.72,0.00012438,2]
[353203109,1739646650216,-533.46,0.00012438,2]
[353203110,1739646650226,-500.0,0.00012438,2]
[353203111,1739646650235,-404.94,0.00012463,2]
[353203112,1739646650244,-404.94,0.00012466,2]
[353203113,1739646650254,-404.94,0.00012469,2]
[353203114,1739646650263,-404.94,0.00012473,2]
[353203115,1739646650273,-404.94,0.00012476,2]
[353203116,1739646650284,-404.94,0.00012479,2]
[353203117,1739646650293,-404.94,0.00012482,2]
[353203118,1739646650303,-262.45,0.00012483,2]
[353203119,1739646650312,-404.94,0.00012486,2]
[353203120,1739646650321,-404.94,0.00012489,2]
[353203121,1739646650330,-404.94,0.00012492,2]
[353203122,1739646650339,-404.94,0.00012496,2]
[353203123,1739646650348,-404.94,0.00012499,2]
[353203124,1739646650358,-404.94,0.00012502,2]
[353203125,1739646650367,-404.94,0.00012505,2]
[353203126,1739646650376,-404.94,0.00012509,2]
[353203127,1739646650385,-404.94,0.00012512,2]
[353203128,1739646650395,-151.0,0.00012515,2]
[353203129,1739646650405,-151.0,0.00012515,2]
[353203130,1739646650414,-248.20711,0.00012515,2]
[353203131,1739646650423,-248.20711,0.00012515,2]
[353203132,1739646650433,-404.94,0.00012515,2]
[353203133,1739646650442,-404.94,0.00012519,2]
[353203134,1739646650452,-721.72,0.0001252,2]
[353203135,1739646650461,-533.46,0.0001252,2]
[353203136,1739646650470,-404.94,0.00012522,2]
[353203137,1739646650479,-404.94,0.00012525,2]
[353203138,1739646650488,-156.04846152,0.00012539,2]
[353203139,1739646650498,-153.0,0.00012543,2]
[353203140,1739646650507,-153.0,0.00012543,2]
[353203141,1739646650515,-153.0,0.00012543,2]
[353203142,1739646650524,-153.0,0.00012543,2]
[353203143,1739646650534,-153.0,0.00012543,2]
[353203144,1739646650543,-153.0,0.00012543,2]
[353203145,1739646650552,-153.0,0.00012543,2]
[353203146,1739646650561,-153.0,0.00012543,2]
[353203147,1739646650570,-153.0,0.00012543,2]
[353203148,1739646650580,-153.0,0.00012543,2]
[353203149,1739646650589,-153.0,0.00012543,2]
[353203150,1739646650598,-153.0,0.00012543,2]
[353203151,1739646650607,-153.0,0.00012543,2]
[353203152,1739646650616,-153.0,0.00012543,2]
[353203153,1739646650625,-153.0,0.00012543,2]
[353203154,1739646650634,-153.0,0.00012543,2]
[353203155,1739646650643,-153.0,0.00012543,2]
[353203156,1739646650652,-153.0,0.00012543,2]
[353203157,1739646650661,-153.0,0.00012543,2]
[353203158,1739646650670,-153.0,0.00012543,2]
[353203159,1739646650679,-153.0,0.00012543,2]
[353203160,1739646650689,-153.0,0.00012543,2]
[353203161,1739646650699,-153.0,0.00012543,2]
[353203162,1739646650708,-153.0,0.00012543,2]
[353203163,1739646650717,-153.0,0.00012543,2]
[353203164,1739646650726,-153.0,0.00012543,2]
[353203165,1739646650735,-153.0,0.00012543,2]
[353203166,1739646650744,-153.0,0.00012543,2]
[353203167,1739646650754,-153.0,0.00012543,2]